fUST/lending_fUST_20250203
["ID","MTS","AMOUNT","RATE_DAILY","PERIOD"]
[351390943,1738551048066,-157.0,0.000179,2]
[351390944,1738551048075,-157.0,0.000179,2]
[351390945,1738551048086,-157.0,0.000179,2]
[351390946,1738551048095,-157.0,0.000179,2]
[351390947,1738551048105,-157.0,0.000179,2]
[351390948,1738551048115,-157.0,0.000179,2]
[351390949,1738551048125,-157.0,0.000179,2]
[351390950,1738551048135,-157.0,0.000179,2]
[351390951,1738551048144,-157.0,0.000179,2]
[351390952,1738551048154,-157.0,0.000179,2]
[351390953,1738551048165,-157.0,0.000179,2]
[351390954,1738551048175,-157.0,0.000179,2]
[351390955,1738551048186,-157.0,0.000179,2]
[351390956,1738551048196,-157.0,0.000179,2]
[351390957,1738551048207,-157.0,0.000179,2]
[351390958,1738551048217,-157.0,0.000179,2]
[351390959,1738551048228,-157.0,0.000179,2]
[351390960,1738551048238,-165.71,0.000179,2]
[351390962,1738551048248,-909.15583221,0.000179,2]
[351390963,1738551048258,-151.0,0.00017945,2]
[351390964,1738551048268,-1115.48,0.00017945,2]
[351390965,1738551048278,-500.0,0.00017945,2]
[351390966,1738551048288,-500.0,0.00017945,2]
[351390967,1738551048298,-500.0,0.00017945,2]
[351390968,1738551048307,-597.73,0.00017945,2]
[351390969,1738551048317,-601.4,0.00017945,2]
[351390970,1738551048327,-500.0,0.00017945,2]
[351390971,1738551048337,-500.0,0.00017945,2]
[351390972,1738551048346,-1454.7,0.00017945,2]
[351390973,1738551048356,-586.82,0.00017945,2]
[351390974,1738551048366,-500.0,0.00017945,2]
[351390975,1738551048375,-3898.11,0.00017945,2]
[351390976,1738551048385,-595.04,0.00017945,2]
[351390977,1738551048398,-940.7,0.00017945,2]
[351390978,1738551048411,-500.0,0.00017945,2]
[351390979,1738551048421,-7975.66,0.00017945,2]
[351390980,1738551048431,-856.29,0.00017945,2]
[351390981,1738551048441,-531.57,0.00017945,2]
[351390982,1738551048451,-1817.94,0.00017945,2]
[351390983,1738551048461,-1084.51,0.00017945,2]
[351390984,1738551048471,-15182.26,0.00017945,2]
[351390985,1738551048484,-934.51,0.00017945,2]
[351390986,1738551048495,-500.0,0.00017945,2]
[351390987,1738551048504,-900.41,0.00017945,2]
[351390988,1738551048514,-1067.15,0.00017945,2]
[351390989,1738551048524,-600.67,0.00017945,2]
[351390990,1738551048537,-2404.05,0.00017945,2]
[351390992,1738551048547,-623.6,0.00017945,2]
[351390993,1738551048557,-500.0,0.00017945,2]
[351390994,1738551048567,-541.98,0.00017945,2]
[351390995,1738551048576,-2264.19,0.00017945,2]
[351390996,1738551048586,-839.22,0.00017945,2]
[351390997,1738551048596,-500.0,0.00017945,2]
[351390998,1738551048607,-500.0,0.00017945,2]
[351390999,1738551048617,-4385.24,0.00017945,2]
[351391000,1738551048627,-1887.07,0.00017945,2]
[351391001,1738551048637,-7526.91,0.00017945,2]
[351391002,1738551048647,-1517.87,0.00017945,2]
[351391003,1738551048657,-500.0,0.00017945,2]
[351391004,1738551048667,-1895.95,0.00017945,2]
[351391005,1738551048677,-781.22,0.00017945,2]
[351391006,1738551048687,-880.8,0.00017945,2]
[351391007,1738551048697,-500.0,0.00017945,2]
[351391008,1738551048707,-1669.22,0.00017945,2]
[351391009,1738551048717,-500.0,0.00017945,2]
[351391010,1738551048728,-1114.96,0.00017945,2]
[351391011,1738551048738,-420.0,0.00017962,2]
[351391012,1738551048748,-500.0,0.00017973,2]
[351391013,1738551048758,-500.0,0.00017973,2]
[351391014,1738551048767,-500.0,0.00017973,2]
[351391015,1738551048777,-500.0,0.00017973,2]
[351391016,1738551048787,-161.85095178,0.00017973,2]
[351391017,1738551048798,-500.0,0.00017973,2]
[351391018,1738551048809,-626.15526889,0.00017973,2]
[351391019,1738551048819,-500.0,0.00017973,2]
[351391021,1738551048830,-1281.03941102,0.00017997,2]
[351391022,1738551048840,-160.0,0.00017999,9]
[351391023,1738551048851,-166.53812886,0.00017999,5]
[351391024,1738551048861,-160.0,0.00017999,3]
[351391025,1738551048871,-160.0,0.00017999,5]
[351391026,1738551048880,-143899.12536895,0.00017999,5]
[351391027,1738551048890,-564394.89897381,0.00018,15]
[351391029,1738551049658,-539.01578919,0.00016437,2]
[351391030,1738551049669,-500.0,0.00016438,2]
[351391031,1738551049679,-500.0,0.00016438,2]
[351391032,1738551049689,-500.0,0.00016438,2]
[351391033,1738551049699,-500.0,0.00016438,2]
[351391034,1738551049709,-500.0,0.00016438,2]
[351391035,1738551049719,-500.98277144,0.00016438,2]
[351391036,1738551049731,-58.4552283,0.00016438,2]
[351391043,1738551051632,-441.9725681,0.00016438,2]
[351391044,1738551051641,-500.0,0.00016438,2]
[351391045,1738551051657,-500.0,0.00016438,2]
[351391046,1738551051675,-500.0,0.00016438,2]
[351391047,1738551051692,-500.32473316,0.00016438,2]
[351391048,1738551051713,-500.0,0.00016575,2]
[351391049,1738551051736,-500.0,0.00016575,2]
[351391050,1738551051753,-500.0,0.00016712,2]
[351391051,1738551051773,-539.45,0.00016986,2]
[351391052,1738551051786,-539.45,0.00017123,2]
[351391053,1738551051803,-539.45,0.0001726,2]
[351391054,1738551051825,-539.45,0.00017397,2]
[351391055,1738551051842,-680.11,0.00017534,2]
[351391056,1738551051855,-539.45,0.00017534,2]
[351391057,1738551051874,-680.11,0.00017671,2]
[351391058,1738551051888,-539.45,0.00017671,2]
[351391059,1738551051904,-680.11,0.00017808,2]
[351391060,1738551051918,-539.45,0.00017808,2]
[351391061,1738551051933,-680.11,0.00017945,2]
[351391062,1738551051948,-539.45,0.00017945,2]
[351391063,1738551051963,-53095.95219877,0.00017999,5]
[351391064,1738551051979,-10821.25117734,0.00018,15]
[351391065,1738551051998,-1000.0,0.00018,15]
[351391066,1738551052251,-500.0,0.00016438,2]
[351391067,1738551052261,-500.0,0.00016438,2]
[351391068,1738551052271,-500.0,0.00016438,2]
[351391070,1738551052459,-500.0,0.00016438,2]
[351391071,1738551052471,-476.8,0.00016438,2]
[351391072,1738551052485,-24.08132272,0.00016438,2]
[351391073,1738551052494,-500.0,0.00016438,2]
[351391074,1738551052503,-490.39025929,0.00016438,2]
[351391075,1738551052568,-14.85333057,0.00016438,2]
[351391076,1738551052577,-500.0,0.00016438,2]
[351391077,1738551052586,-259.21,0.00016575,2]
[351391078,1738551052596,-500.0,0.00016575,2]
[351391079,1738551052605,-500.0,0.00016575,2]
[351391080,1738551052614,-500.0,0.00016575,2]
[351391081,1738551052623,-500.0,0.00016575,2]
[351391082,1738551052632,-416.84,0.00016712,2]
[351391083,1738551052641,-500.0,0.00016712,2]
[351391084,1738551052651,-56.21670035,0.00016712,2]
[351391236,1738551161358,209.265476,0.00013973,2]
[351391432,1738551292925,500.7546796,0.00016438,14]
[351391869,1738551684052,170.0,0.00020453,120]
[351391908,1738551708439,153.0,0.00013699,2]
[351391909,1738551708668,153.0,0.00013699,2]
[351391910,1738551708886,153.0,0.00013699,2]
[351391913,1738551709105,153.0,0.00013699,2]
[351391914,1738551709323,153.0,0.00013699,2]
[351391916,1738551709554,153.0,0.00013699,2]
[351391917,1738551709759,153.0,0.00013699,2]
[351391918,1738551709963,153.0,0.00013699,2]
[351391919,1738551710194,153.0,0.00013699,2]
[351391920,1738551710392,153.0,0.00013699,2]
[351391929,1738551715885,153.0,0.00013699,2]
[351391930,1738551716095,153.0,0.00013699,2]
[351391932,1738551716313,153.0,0.00013699,2]
[351391933,1738551716526,153.0,0.00013699,2]
[351392009,1738551771751,153.0,0.00013699,2]
[351392010,1738551771976,153.0,0.00013699,2]
[351392011,1738551772203,153.0,0.00013699,2]
[351392012,1738551772449,153.0,0.00013699,2]
[351392014,1738551772726,153.0,0.00013699,2]
[351392015,1738551772882,153.0,0.00013699,2]
[351392016,1738551773093,153.0,0.00013699,2]
[351392017,1738551773296,153.0,0.00013699,2]
[351392018,1738551773505,153.0,0.00013699,2]
[351392020,1738551773732,153.0,0.00013699,2]
[351392021,1738551773949,153.0,0.00013699,2]
[351392026,1738551779806,153.0,0.00013699,2]
[351392027,1738551780039,153.0,0.00013699,2]
[351392028,1738551780255,153.0,0.00013699,2]
[351392029,1738551780475,153.0,0.00013699,2]
[351392101,1738551827068,153.0,0.00013699,2]
[351392103,1738551827885,153.0,0.00013699,2]
[351392105,1738551828109,153.0,0.00013699,2]
[351392106,1738551828485,153.0,0.00013699,2]
[351392108,1738551828625,153.0,0.00013699,2]
[351392109,1738551828788,153.0,0.00013699,2]
[351392110,1738551829022,153.0,0.00013699,2]
[351392111,1738551829228,153.0,0.00013699,2]
[351392113,1738551829463,153.0,0.00013699,2]
[351392117,1738551834859,6.0664587,0.00013699,2]
[351392118,1738551834893,146.9335413,0.00013699,2]
[351392119,1738551835063,153.0,0.00013699,2]
[351392121,1738551835270,153.0,0.00013699,2]
[351392122,1738551835487,153.0,0.00013699,2]
[351392155,1738551858903,-1750.0,0.00020502,120]
[351392229,1738551890715,153.0,0.00013699,2]
[351392231,1738551890930,153.0,0.00013699,2]
[351392232,1738551891155,153.0,0.00013699,2]
[351392235,1738551891386,153.0,0.00013699,2]
[351392236,1738551891612,153.0,0.00013699,2]
[351392238,1738551891831,153.0,0.00013699,2]
[351392240,1738551892046,153.0,0.00013699,2]
[351392243,1738551896868,153.0,0.00013699,2]
[351392245,1738551897088,153.0,0.00013699,2]
[351392246,1738551897403,153.0,0.00013699,2]
[351392320,1738551946854,153.0,0.00013699,2]
[351392326,1738551947066,153.0,0.00013699,2]
[351392331,1738551947272,153.0,0.00013699,2]
[351392333,1738551947489,153.0,0.00013699,2]
[351392335,1738551947691,153.0,0.00013699,2]
[351392336,1738551947906,153.0,0.00013699,2]
[351392347,1738551952385,153.0,0.00013699,2]
[351392348,1738551952590,153.0,0.00013699,2]
[351392601,1738552136147,208.001203,0.00013973,2]
[351392781,1738552232924,-3640.9785995,0.00015236,2]
[351392783,1738552232933,-300.0,0.00015357,2]
[351392785,1738552232942,-7438.7644632,0.00015358,2]
[351392787,1738552232952,-784.12009019,0.0001547,2]
[351392789,1738552232962,-500.0,0.0001557,2]
[351392791,1738552232971,-500.0,0.00015753,2]
[351392793,1738552232980,-181.36124753,0.00016338,2]
[351392795,1738552232989,-3000.0,0.000164,2]
[351392797,1738552232999,-2368.69910256,0.0001641,2]
[351392828,1738552238877,-631.30089744,0.0001641,2]
[351392830,1738552238887,-3000.0,0.0001642,2]
[351392832,1738552238897,-3000.0,0.0001643,2]
[351392834,1738552238906,-500.0,0.00016437,2]
[351392836,1738552238915,-233.59570617,0.00016437,2]
[351392838,1738552238927,-230.47564221,0.00016437,2]
[351392840,1738552238936,-500.0,0.00016437,2]
[351392842,1738552238945,-500.0,0.00016437,2]
[351392844,1738552238954,-500.0,0.00016437,2]
[351392846,1738552238963,-500.0,0.00016437,2]
[351392848,1738552238973,-500.0,0.00016437,2]
[351392849,1738552238982,-500.0,0.00016437,2]
[351392852,1738552238991,-500.0,0.00016437,2]
[351392853,1738552239001,-277.31105244,0.00016437,2]
[351392856,1738552239010,-500.0,0.00016437,2]
[351392858,1738552239019,-501.04972309,0.00016437,2]
[351392860,1738552239028,-500.0,0.00016438,2]
[351392861,1738552239038,-358.38955953,0.00016438,2]
[351392864,1738552239047,-500.0,0.00016438,2]
[351392865,1738552239056,-500.0,0.00016438,2]
[351392867,1738552239066,-508.99588187,0.00016438,2]
[351392869,1738552239075,-500.0,0.00016438,2]
[351392871,1738552239085,-500.0,0.00016438,2]
[351392873,1738552239095,-500.0,0.00016438,2]
[351392875,1738552239105,-500.0,0.00016438,2]
[351392877,1738552239114,-500.90777124,0.00016438,2]
[351392879,1738552239124,-500.0,0.00016438,2]
[351392881,1738552239134,-500.0,0.00016438,2]
[351392883,1738552239143,-500.0,0.00016438,2]
[351392885,1738552239152,-500.0,0.00016438,2]
[351392887,1738552239161,-509.62187217,0.00016438,2]
[351392889,1738552239174,-501.2478434,0.00016438,2]
[351392891,1738552239183,-500.0,0.00016438,2]
[351392893,1738552239193,-374.90142079,0.00016438,2]
[351392895,1738552239203,-500.0,0.00016438,2]
[351392897,1738552239212,-500.0,0.00016438,2]
[351392899,1738552239222,-500.0,0.00016438,2]
[351392901,1738552239231,-500.0,0.00016438,2]
[351392903,1738552239241,-500.0,0.00016438,2]
[351392905,1738552239250,-500.0,0.00016438,2]
[351392907,1738552239260,-500.0,0.00016438,2]
[351392909,1738552239271,-500.0,0.00016438,2]
[351392911,1738552239282,-500.0,0.00016438,2]
[351392913,1738552239292,-500.0,0.00016438,2]
[351392915,1738552239302,-500.0,0.00016438,2]
[351392917,1738552239311,-500.0,0.00016438,2]
[351392919,1738552239320,-500.0,0.00016438,2]
[351392921,1738552239329,-500.0,0.00016438,2]
[351392923,1738552239337,-500.0,0.00016438,2]
[351392925,1738552239347,-500.0,0.00016438,2]
[351392927,1738552239356,-502.52796595,0.00016438,2]
[351392929,1738552239365,-500.0,0.00016438,2]
[351392930,1738552239375,-501.2752989,0.00016438,2]
[351392932,1738552239385,-500.0,0.00016438,2]
[351392934,1738552239395,-500.0,0.00016438,2]
[351392936,1738552239404,-500.0,0.00016438,2]
[351392938,1738552239414,-501.90005881,0.00016438,2]
[351392940,1738552239427,-1000.0,0.00016438,2]
[351392942,1738552239437,-501.98826541,0.00016438,2]
[351392944,1738552239446,-180.96595267,0.00016438,2]
[351392946,1738552239455,-500.0,0.00016438,2]
[351392948,1738552239464,-500.0,0.00016438,2]
[351392950,1738552239473,-500.0,0.00016438,2]
[351392952,1738552239482,-500.0,0.00016438,2]
[351392954,1738552239491,-500.0,0.00016438,2]
[351392956,1738552239501,-505.15026538,0.00016438,2]
[351392958,1738552239510,-500.0,0.00016438,2]
[351392960,1738552239520,-500.0,0.00016438,2]
[351392962,1738552239530,-502.94769296,0.00016438,2]
[351392964,1738552239540,-500.0,0.00016438,2]
[351392966,1738552239550,-500.0,0.00016438,2]
[351392968,1738552239559,-500.0,0.00016438,2]
[351392970,1738552239569,-500.0,0.00016438,2]
[351392971,1738552239580,-500.0,0.00016438,2]
[351392972,1738552239590,-500.0,0.00016438,2]
[351392973,1738552239599,-500.0,0.00016438,2]
[351392975,1738552239611,-500.0,0.00016438,2]
[351392976,1738552239623,-501.00205967,0.00016438,2]
[351392978,1738552239635,-500.0,0.00016438,2]
[351392980,1738552239645,-623.67885173,0.00016438,2]
[351392982,1738552239654,-500.0,0.00016438,2]
[351392984,1738552239664,-500.0,0.00016438,2]
[351392986,1738552239678,-500.0,0.00016438,2]
[351392987,1738552239689,-500.0,0.00016438,2]
[351392989,1738552239700,-500.0,0.00016438,2]
[351392991,1738552239713,-500.0,0.00016438,2]
[351392992,1738552239723,-501.24094521,0.00016438,2]
[351392993,1738552239734,-500.0,0.00016438,2]
[351392994,1738552239744,-500.0,0.00016438,2]
[351392995,1738552239753,-500.0,0.00016438,2]
[351392996,1738552239764,-500.0,0.00016438,2]
[351392997,1738552239774,-500.0,0.00016438,2]
[351392998,1738552239784,-500.0,0.00016438,2]
[351393000,1738552239794,-500.86824252,0.00016438,2]
[351393001,1738552239802,-500.0,0.00016438,2]
[351393002,1738552239813,-500.0,0.00016438,2]
[351393003,1738552239825,-500.0,0.00016438,2]
[351393004,1738552239835,-500.0,0.00016438,2]
[351393005,1738552239845,-500.0,0.00016438,2]
[351393006,1738552239855,-573.39403823,0.00016438,2]
[351393007,1738552239865,-500.0,0.00016438,2]
[351393008,1738552239875,-500.0,0.00016438,2]
[351393009,1738552239885,-500.0,0.00016438,2]
[351393010,1738552239897,-500.0,0.00016438,2]
[351393011,1738552239907,-500.0,0.00016438,2]
[351393012,1738552239918,-500.0,0.00016438,2]
[351393013,1738552239934,-500.0,0.00016438,2]
[351393014,1738552239945,-500.0,0.00016438,2]
[351393015,1738552239954,-500.0,0.00016438,2]
[351393016,1738552239964,-500.0,0.00016438,2]
[351393017,1738552239974,-500.0,0.00016438,2]
[351393018,1738552239985,-500.0,0.00016438,2]
[351393019,1738552239995,-500.0,0.00016438,2]
[351393020,1738552240006,-500.0,0.00016438,2]
[351393021,1738552240016,-500.0,0.00016438,2]
[351393022,1738552240025,-500.0,0.00016438,2]
[351393023,1738552240035,-500.0,0.00016438,2]
[351393024,1738552240045,-500.0,0.00016438,2]
[351393025,1738552240055,-500.0,0.00016438,2]
[351393026,1738552240064,-500.0,0.00016438,2]
[351393027,1738552240074,-500.0,0.00016438,2]
[351393028,1738552240083,-500.0,0.00016438,2]
[351393029,1738552240093,-501.64424515,0.00016438,2]
[351393030,1738552240102,-500.0,0.00016438,2]
[351393031,1738552240112,-500.0,0.00016438,2]
[351393032,1738552240121,-502.77594691,0.00016438,2]
[351393033,1738552240131,-500.0,0.00016438,2]
[351393035,1738552240140,-500.0,0.00016438,2]
[351393036,1738552240149,-500.0,0.00016438,2]
[351393037,1738552240159,-500.0,0.00016438,2]
[351393038,1738552240169,-500.0,0.00016438,2]
[351393039,1738552240183,-516.55813574,0.00016438,2]
[351393040,1738552240193,-500.0,0.00016438,2]
[351393042,1738552240212,-500.0,0.00016438,2]
[351393044,1738552240227,-500.0,0.00016438,2]
[351393046,1738552240238,-500.0,0.00016438,2]
[351393048,1738552240249,-197.29391668,0.00016438,2]
[351393051,1738552240260,-502.45778128,0.00016438,2]
[351393053,1738552240271,-500.79357428,0.00016438,2]
[351393055,1738552240282,-500.0,0.00016438,2]
[351393057,1738552240294,-500.0,0.00016438,2]
[351393059,1738552240305,-500.0,0.00016438,2]
[351393061,1738552240315,-500.0,0.00016438,2]
[351393063,1738552240326,-505.39282723,0.00016438,2]
[351393065,1738552240336,-500.0,0.00016438,2]
[351393068,1738552240346,-500.0,0.00016438,2]
[351393078,1738552240444,-500.0,0.00016438,2]
[351393080,1738552240455,-500.0,0.00016438,2]
[351393083,1738552240466,-500.0,0.00016438,2]
[351393085,1738552240477,-500.0,0.00016438,2]
[351393088,1738552240487,-500.0,0.00016438,2]
[351393091,1738552240499,-500.0,0.00016438,2]
[351393094,1738552240511,-500.0,0.00016438,2]
[351393097,1738552240523,-500.0,0.00016438,2]
[351393099,1738552240537,-500.0,0.00016438,2]
[351393103,1738552240548,-500.0,0.00016438,2]
[351393105,1738552240559,-500.0,0.00016438,2]
[351393107,1738552240569,-500.0,0.00016438,2]
[351393109,1738552240578,-500.0,0.00016438,2]
[351393111,1738552240588,-500.0,0.00016438,2]
[351393113,1738552240599,-500.0,0.00016438,2]
[351393116,1738552240612,-500.0,0.00016438,2]
[351393118,1738552240621,-500.0,0.00016438,2]
[351393120,1738552240631,-500.0,0.00016438,2]
[351393122,1738552240641,-500.0,0.00016438,2]
[351393124,1738552240651,-500.0,0.00016438,2]
[351393126,1738552240661,-500.0,0.00016438,2]
[351393128,1738552240673,-500.0,0.00016438,2]
[351393130,1738552240684,-610.39006674,0.00016438,2]
[351393132,1738552240695,-500.0,0.00016438,2]
[351393134,1738552240704,-500.0,0.00016438,2]
[351393136,1738552240714,-502.97320282,0.00016438,2]
[351393138,1738552240725,-500.0,0.00016438,2]
[351393140,1738552240736,-500.0,0.00016438,2]
[351393143,1738552240746,-500.0,0.00016438,2]
[351393145,1738552240755,-500.0,0.00016438,2]
[351393148,1738552240765,-500.0,0.00016438,2]
[351393150,1738552240775,-500.0,0.00016438,2]
[351393153,1738552240788,-500.0,0.00016438,2]
[351393155,1738552240798,-500.0,0.00016438,2]
[351393158,1738552240808,-500.0,0.00016438,2]
[351393161,1738552240823,-500.0,0.00016438,2]
[351393164,1738552240834,-500.0,0.00016438,2]
[351393166,1738552240844,-500.0,0.00016438,2]
[351393169,1738552240854,-500.89371923,0.00016438,2]
[351393172,1738552240863,-500.0,0.00016438,2]
[351393175,1738552240874,-500.0,0.00016438,2]
[351393177,1738552240883,-504.13007578,0.00016438,2]
[351393179,1738552240892,-500.0,0.00016438,2]
[351393180,1738552240901,-500.0,0.00016438,2]
[351393182,1738552240911,-501.04038757,0.00016438,2]
[351393184,1738552240920,-500.0,0.00016438,2]
[351393187,1738552240932,-500.0,0.00016438,2]
[351393189,1738552240941,-512.13122052,0.00016438,2]
[351393192,1738552240951,-500.0,0.00016438,2]
[351393195,1738552240960,-500.0,0.00016438,2]
[351393197,1738552240970,-500.0,0.00016438,2]
[351393200,1738552240980,-500.0,0.00016438,2]
[351393202,1738552240990,-500.0,0.00016438,2]
[351393204,1738552241000,-500.0,0.00016438,2]
[351393206,1738552241010,-326.07625173,0.00016438,2]
[351393208,1738552241020,-500.0,0.00016438,2]
[351393210,1738552241029,-500.0,0.00016438,2]
[351393212,1738552241039,-500.0,0.00016438,2]
[351393214,1738552241048,-231.06078726,0.00016438,2]
[351393216,1738552241057,-501.01760237,0.00016438,2]
[351393218,1738552241067,-500.0,0.00016438,2]
[351393220,1738552241076,-500.0,0.00016438,2]
[351393222,1738552241086,-500.0,0.00016438,2]
[351393224,1738552241095,-500.0,0.00016438,2]
[351393226,1738552241105,-500.0,0.00016438,2]
[351393228,1738552241114,-500.0,0.00016438,2]
[351393230,1738552241123,-500.0,0.00016438,2]
[351393232,1738552241135,-506.07346661,0.00016438,2]
[351393234,1738552241144,-500.69261244,0.00016438,2]
[351393236,1738552241154,-500.0,0.00016438,2]
[351393238,1738552241163,-500.0,0.00016438,2]
[351393240,1738552241174,-458.89073302,0.00016438,2]
[351393242,1738552241183,-500.0,0.00016438,2]
[351393243,1738552241193,-501.81076776,0.00016438,2]
[351393244,1738552241203,-500.0,0.00016438,2]
[351393246,1738552241212,-500.0,0.00016438,2]
[351393247,1738552241221,-500.0,0.00016438,2]
[351393248,1738552241231,-589.08221409,0.00016438,2]
[351393249,1738552241240,-500.0,0.00016438,2]
[351393250,1738552241249,-500.0,0.00016438,2]
[351393251,1738552241258,-500.0,0.00016438,2]
[351393252,1738552241268,-239.24330866,0.00016438,2]
[351393253,1738552241277,-500.0,0.00016438,2]
[351393254,1738552241287,-500.88200844,0.00016438,2]
[351393255,1738552241296,-500.0,0.00016438,2]
[351393256,1738552241305,-500.0,0.00016438,2]
[351393257,1738552241315,-500.0,0.00016438,2]
[351393258,1738552241324,-505.1804492,0.00016438,2]
[351393259,1738552241334,-500.0,0.00016438,2]
[351393260,1738552241343,-500.0,0.00016438,2]
[351393261,1738552241353,-500.0,0.00016438,2]
[351393262,1738552241362,-500.0,0.00016438,2]
[351393263,1738552241371,-350.08237138,0.00016438,2]
[351393264,1738552241380,-500.0,0.00016438,2]
[351393265,1738552241390,-500.0,0.00016438,2]
[351393266,1738552241399,-500.0,0.00016438,2]
[351393267,1738552241408,-500.0,0.00016438,2]
[351393268,1738552241417,-500.0,0.00016438,2]
[351393269,1738552241430,-500.55612132,0.00016438,2]
[351393270,1738552241439,-500.0,0.00016438,2]
[351393271,1738552241449,-503.99801622,0.00016438,2]
[351393272,1738552241459,-500.0,0.00016438,2]
[351393273,1738552241474,-500.0,0.00016438,2]
[351393274,1738552241483,-500.0,0.00016438,2]
[351393275,1738552241493,-500.0,0.00016438,2]
[351393276,1738552241503,-538.66954252,0.00016438,2]
[351393277,1738552241512,-500.0,0.00016438,2]
[351393278,1738552241522,-500.0,0.00016438,2]
[351393279,1738552241532,-500.0,0.00016438,2]
[351393280,1738552241541,-441.06880133,0.00016438,2]
[351393281,1738552241551,-500.0,0.00016438,2]
[351393282,1738552241560,-500.0,0.00016438,2]
[351393283,1738552241570,-500.0,0.00016438,2]
[351393284,1738552241580,-500.0,0.00016438,2]
[351393285,1738552241589,-500.0,0.00016438,2]
[351393286,1738552241599,-500.0,0.00016438,2]
[351393287,1738552241608,-505.26949424,0.00016438,2]
[351393288,1738552241617,-500.0,0.00016438,2]
[351393289,1738552241626,-502.09667083,0.00016438,2]
[351393290,1738552241635,-500.0,0.00016438,2]
[351393291,1738552241645,-500.0,0.00016438,2]
[351393292,1738552241655,-500.0,0.00016438,2]
[351393293,1738552241665,-500.99150561,0.00016438,2]
[351393294,1738552241679,-500.0,0.00016438,2]
[351393295,1738552241689,-500.0,0.00016438,2]
[351393296,1738552241700,-627.39936324,0.00016438,2]
[351393297,1738552241711,-500.0,0.00016438,2]
[351393298,1738552241722,-500.0,0.00016438,2]
[351393299,1738552241733,-500.0,0.00016438,2]
[351393300,1738552241744,-504.32961771,0.00016438,2]
[351393301,1738552241754,-500.0,0.00016438,2]
[351393302,1738552241764,-500.0,0.00016438,2]
[351393303,1738552241774,-500.0,0.00016438,2]
[351393304,1738552241785,-500.0,0.00016438,2]
[351393305,1738552241796,-500.0,0.00016438,2]
[351393306,1738552241806,-500.0,0.00016438,2]
[351393307,1738552241815,-500.0,0.00016438,2]
[351393309,1738552241828,-500.0,0.00016438,2]
[351393310,1738552241839,-500.0,0.00016438,2]
[351393311,1738552241848,-500.0,0.00016438,2]
[351393312,1738552241858,-500.0,0.00016438,2]
[351393313,1738552241867,-500.0,0.00016438,2]
[351393314,1738552241877,-500.0,0.00016438,2]
[351393316,1738552241887,-500.0,0.00016438,2]
[351393317,1738552241897,-500.0,0.00016438,2]
[351393318,1738552241906,-500.0,0.00016438,2]
[351393319,1738552241916,-511.9715412,0.00016438,2]
[351393320,1738552241935,-500.0,0.00016438,2]